[Event "GER-ch Youth-U12 2022"]
[Site "Willingen"]
[Date "2022.06.07"]
[Round "4.27"]
[White "Draude, Theo"]
[Black "Haertel, Leon"]
[Result "1/2-1/2"]
[ECO "B44"]
[WhiteElo "1397"]
[BlackElo "1536"]
[Annotator "NA RC COMBH"]
[PlyCount "215"]
[EventDate "2022.06.05"]
[EventType "swiss"]
[EventRounds "9"]
[EventCountry "GER"]
[SourceTitle "playchess.com"]
[Source "ChessBase"]
[SourceQuality "1"]
[TimeControl "40/4500+30:900+30"]

1. e4 {[%emt 0:00:00]} c5 {[%emt 0:00:00]} 2. Nf3 {[%emt 0:00:00]} e6 {[%emt 0:00:00]} 3. d4 {[%emt 0:00:00]} cxd4 {[%emt 0:00:06]} 4. Nxd4 {[%emt 0:00:00]} Nc6 {[%emt 0:00:00]} 5. Be3 {[%emt 0:00:00]} Nf6 {[%emt 0:00:00]} 6. Bd3 {[%emt 0:00:00]} Be7 {[%emt 0:00:00]} 7. O-O {[%emt 0:00:00]} O-O {[%emt 0:00:00]} 8. c4 {[%emt 0:00:00]} Qc7 {[%emt 0:00:00]} 9. f4 {[%emt 0:00:00]} Bc5 {[%emt 0:00:00]} 10. Nc2 {[%emt 0:00:00]} Bxe3+ {[%emt 0:00:00]} 11. Nxe3 {[%emt 0:00:00]} Qb6 {[%emt 0:00:00]} 12. Qe2 {[%emt 0:00:00]} Nb4 {[%emt 0:00:00]} 13. h3 {[%emt 0:00:00]} Nxd3 {[%emt 0:00:00]} 14. Qxd3 {[%emt 0:00:14]} Qxb2 {[%emt 0:00:00]} 15. Nc3 {[%emt 0:00:00]} Qb6 {[%emt 0:00:00]} 16. Rab1 {[%emt 0:00:00]} Qc6 {[%emt 0:00:00]} 17. e5 {[%emt 0:00:00]} Ne8 {[%emt 0:00:00]} 18. f5 {[%emt 0:00:00]} exf5 {[%emt 0:00:00]} 19. Ncd5 {[%emt 0:00:00]} Qe6 {[%emt 0:00:00]} 20. Nxf5 {[%emt 0:00:00]} b6 {[%emt 0:02:05]} 21. Rf4 {[%emt 0:01:40]} Bb7 {[%emt 0:01:44]} 22. Re1 {[%emt 0:00:28]} Rb8 {[%emt 0:01:23]} 23. Rg4 {[%emt 0:00:47]} Kh8 {[%emt 0:09:47]} 24. Rh4 {[%emt 0:02:15]} g6 {[%emt 0:03:11]} 25. Nd4 {[%emt 0:02:19]} Bxd5 {[%emt 0:00:00]} 26. Nxe6 {[%emt 0:00:22]} Bxe6 {[%emt 0:00:00]} 27. Qe3 {[%emt 0:00:45]} h5 {[%emt 0:00:11]} 28. Qa3 {[%emt 0:00:31]} Ng7 {[%emt 0:00:16]} 29. Qxa7 {[%emt 0:00:47]} Nf5 {[%emt 0:00:12]} 30. Rhe4 {[%emt 0:00:21]} Ra8 {[%emt 0:00:10]} 31. Qxb6 {[%emt 0:00:11]} Rxa2 {[%emt 0:00:06]} 32. Qc5 {[%emt 0:00:23]} Kg7 {[%emt 0:00:14]} 33. R4e2 {[%emt 0:00:15]} Ra4 {[%emt 0:00:18]} 34. Rc2 {[%emt 0:00:33]} Rfa8 {[%emt 0:00:19]} 35. Rec1 {[%emt 0:01:04]} R8a5 {[%emt 0:00:29]} 36. Qc7 {[%emt 0:01:59]} Ne3 {[%emt 0:00:57]} 37. Rc3 {[%emt 0:00:30]} Nf5 {[%emt 0:02:00]} 38. c5 {[%emt 0:00:14]} Nd4 {[%emt 0:00:15]} 39. Qd8 {[%emt 0:01:05]} Ne2+ {[%emt 0:00:51]} 40. Kh2 {[%emt 0:00:25]} Nxc3 {[%emt 0:00:07]} 41. Rxc3 {[%emt 0:15:12]} Ra8 {[%emt 0:15:10]} 42. Qf6+ {[%emt 0:00:21]} Kh7 {[%emt 0:00:17]} 43. c6 {[%emt 0:01:16]} dxc6 {[%emt 0:00:53]} 44. Rxc6 {[%emt 0:00:14]} Ra2 {[%emt 0:00:13]} 45. Rd6 {[%emt 0:00:56]} Rb2 {[%emt 0:00:53]} 46. Rd8 {[%emt 0:00:24]} Rxd8 {[%emt 0:00:10]} 47. Qxd8 {[%emt 0:00:09]} Re2 {[%emt 0:00:19]} 48. Qd4 {[%emt 0:00:53]} Ra2 {[%emt 0:04:08]} 49. Kg3 {[%emt 0:03:23]} Rc2 {[%emt 0:02:53]} 50. Qd3 {[%emt 0:01:54]} Rb2 {[%emt 0:02:05]} 51. Qd4 {[%emt 0:00:47]} Rb3+ {[%emt 0:00:13]} 52. Kh4 {[%emt 0:00:22]} Rb5 {[%emt 0:01:13]} 53. Kg5 {[%emt 0:00:26]} Kg7 {[%emt 0:00:29]} 54. Qf4 {[%emt 0:00:22]} Rd5 {[%emt 0:01:22]} 55. Qf6+ {[%emt 0:00:54]} Kf8 {[%emt 0:00:07]} 56. Kh6 {[%emt 0:00:55]} Ke8 {[%emt 0:00:12]} 57. Kg7 {[%emt 0:00:34]} Kd7 {[%emt 0:00:48]} 58. Qg5 {[%emt 0:01:03]} Kc6 {[%emt 0:03:19]} 59. g4 {[%emt 0:01:09]} hxg4 {[%emt 0:00:21]} 60. hxg4 {[%emt 0:00:12]} Rd4 {[%emt 0:00:31]} 61. Qc1+ {[%emt 0:01:50]} Kd7 {[%emt 0:02:12]} 62. g5 {[%emt 0:00:35]} Rd5 {[%emt 0:00:12]} 63. Kf6 {[%emt 0:00:10]} Bf5 {[%emt 0:00:36]} 64. Qb2 {[%emt 0:00:54]} Be6 {[%emt 0:00:17]} 65. Qb7+ {[%emt 0:00:40]} Kd8 {[%emt 0:00:17]} 66. Qa7 {[%emt 0:00:52]} Kc8 {[%emt 0:00:34]} 67. Qb6 {[%emt 0:00:45]} Rd7 {[%emt 0:00:26]} 68. Kg7 {[%emt 0:00:36]} Rd8 {[%emt 0:01:32]} 69. Kf6 {[%emt 0:01:10]} Rd7 {[%emt 0:00:08]} 70. Qc6+ {[%emt 0:00:04]} Rc7 {[%emt 0:00:08]} 71. Qa8+ {[%emt 0:00:53]} Kd7 {[%emt 0:00:20]} 72. Kg7 {[%emt 0:00:24]} Ke7 {[%emt 0:01:10]} 73. Qf8+ {[%emt 0:00:54]} Kd7 {[%emt 0:00:20]} 74. Qd6+ {[%emt 0:00:18]} Kc8 {[%emt 0:00:07]} 75. Kf8 {[%emt 0:00:13]} Rd7 {[%emt 0:00:27]} 76. Qc6+ {[%emt 0:00:16]} Kb8 {[%emt 0:00:05]} 77. Ke8 {[%emt 0:00:20]} Rb7 {[%emt 0:01:10]} 78. Qd6+ {[%emt 0:00:17]} Ka7 {[%emt 0:00:09]} 79. Kd8 {[%emt 0:00:11]} Rb8+ {[%emt 0:00:13]} 80. Ke7 {[%emt 0:01:02]} Rb7+ {[%emt 0:00:09]} 81. Kf6 {[%emt 0:00:23]} Rb6 {[%emt 0:00:13]} 82. Qc7+ {[%emt 0:00:12]} Ka6 {[%emt 0:00:10]} 83. Qc5 {[%emt 0:00:43]} Kb7 {[%emt 0:01:08]} 84. Ke7 {[%emt 0:00:23]} Ka6 {[%emt 0:01:24]} 85. Qa3+ {[%emt 0:00:44]} Kb5 {[%emt 0:00:08]} 86. Qd3+ {[%emt 0:00:36]} Kc5 {[%emt 0:00:28]} 87. Qe3+ {[%emt 0:01:03]} Kb5 {[%emt 0:00:08]} 88. Kd8 {[%emt 0:00:29]} Rb8+ {[%emt 0:00:19]} 89. Kc7 {[%emt 0:00:38]} Rc8+ {[%emt 0:00:35]} 90. Kb7 {[%emt 0:00:13]} Rc4 {[%emt 0:00:15]} 91. Qb6+ {[%emt 0:00:57]} Ka4 {[%emt 0:00:09]} 92. Qa6+ {[%emt 0:00:27]} Kb3 {[%emt 0:00:11]} 93. Kb6 {[%emt 0:00:37]} Rb4+ {[%emt 0:00:45]} 94. Kc5 {[%emt 0:00:27]} Rc4+ {[%emt 0:00:10]} 95. Kd6 {[%emt 0:00:13]} Kc3 {[%emt 0:00:15]} 96. Qa3+ {[%emt 0:00:27]} Kd4 {[%emt 0:02:17]} 97. Qf3 {[%emt 0:01:18]} Rc3 {[%emt 0:00:57]} 98. Qe2 {[%emt 0:00:41]} Re3 {[%emt 0:00:26]} 99. Qb2+ {[%emt 0:01:28]} Ke4 {[%emt 0:00:16]} 100. Kc5 {[%emt 0:00:26]} Kf4 {[%emt 0:00:45]} 101. Qd2 {[%emt 0:00:25]} Kf3 {[%emt 0:00:44]} 102. Kd4 {[%emt 0:00:39]} Re4+ {[%emt 0:00:14]} 103. Kd3 {[%emt 0:00:25]} Rxe5 {[%emt 0:00:32]} 104. Qd1+ {[%emt 0:00:43]} Kf4 {[%emt 0:00:41]} 105. Qd2+ {[%emt 0:00:11]} Kf5 {[%emt 0:00:20]} 106. Qg2 {[%emt 0:00:54]} Rd5+ {[%emt 0:01:06]} 107. Ke3 {[%emt 0:00:27]} Re5+ {[%emt 0:00:15]} 108. Kd3 {[%emt 0:00:07]} 1/2-1/2

[Event "GER-ch Youth-U12 2022"]
[Site "Willingen"]
[Date "2022.06.08"]
[Round "5.1"]
[White "Nechitailo, Nikita"]
[Black "Buchinger, Alexis"]
[Result "1/2-1/2"]
[ECO "C52"]
[WhiteElo "1371"]
[BlackElo "1676"]
[Annotator "NA RC COMBH"]
[PlyCount "63"]
[EventDate "2022.06.05"]
[EventType "swiss"]
[EventRounds "9"]
[EventCountry "GER"]
[SourceTitle "playchess.com"]
[Source "ChessBase"]
[SourceQuality "1"]
[TimeControl "40/4500+30:900+30"]

1. e4 {[%emt 0:00:00]} e5 {[%emt 0:00:00]} 2. Nf3 {[%emt 0:00:00]} Nc6 {[%emt 0:00:00]} 3. Bc4 {[%emt 0:00:04]} Bc5 {[%emt 0:00:00]} 4. b4 {[%emt 0:00:00]} Bxb4 {[%emt 0:00:00]} 5. c3 {[%emt 0:00:00]} Ba5 {[%emt 0:00:00]} 6. d4 {[%emt 0:00:00]} b5 {[%emt 0:00:00]} 7. Bxb5 {[%emt 0:00:00]} Nxd4 {[%emt 0:00:00]} 8. Nxd4 {[%emt 0:00:00]} exd4 {[%emt 0:00:00]} 9. Qxd4 {[%emt 0:00:00]} Qf6 {[%emt 0:00:00]} 10. Bd2 {[%emt 0:00:00]} Bb6 {[%emt 0:00:00]} 11. Qxf6 {[%emt 0:00:00]} Nxf6 {[%emt 0:00:00]} 12. f3 {[%emt 0:00:00]} c6 {[%emt 0:00:00]} 13. Bd3 {[%emt 0:00:00]} O-O {[%emt 0:01:09]} 14. Na3 {[%emt 0:00:00]} Re8 {[%emt 0:01:49]} 15. O-O-O {[%emt 0:02:08]} Bc5 {[%emt 0:01:16]} 16. Nc2 {[%emt 0:03:36]} Rb8 {[%emt 0:02:41]} 17. Rhe1 {[%emt 0:03:12]} Rb6 {[%emt 0:02:00]} 18. Be3 {[%emt 0:04:55]} Bxe3+ {[%emt 0:01:05]} 19. Nxe3 {[%emt 0:00:27]} Ba6 {[%emt 0:07:12]} 20. Nc4 {[%emt 0:00:15]} Bxc4 {[%emt 0:00:31]} 21. Bxc4 {[%emt 0:00:05]} Reb8 {[%emt 0:05:01]} 22. e5 {[%emt 0:02:45]} Nd5 {[%emt 0:01:14]} 23. Bxd5 {[%emt 0:17:05]} cxd5 {[%emt 0:00:16]} 24. Re2 {[%emt 0:01:00]} Rb5 {[%emt 0:20:17]} 25. Kd2 {[%emt 0:06:46]} Kf8 {[%emt 0:02:42]} 26. f4 {[%emt 0:03:56]} Ke7 {[%emt 0:00:54]} 27. Kd3 {[%emt 0:04:01]} Rc5 {[%emt 0:03:52]} 28. Rdd2 {[%emt 0:04:54]} Rbc8 {[%emt 0:04:27]} 29. Rc2 {[%emt 0:01:36]} a5 {[%emt 0:02:59]} 30. f5 {[%emt 0:01:30]} Rc4 {[%emt 0:03:06]} 31. Rf2 {[%emt 0:07:21]} g6 {[%emt 0:03:04]} 32. fxg6 {[%emt 0:04:26]} 1/2-1/2

[Event "GER-ch Youth-U12 2022"]
[Site "Willingen"]
[Date "2022.06.08"]
[Round "5.2"]
[White "Stichter, Constantin Paul"]
[Black "Gloeckler, Christian"]
[Result "1-0"]
[ECO "E73"]
[WhiteElo "1472"]
[BlackElo "1869"]
[Annotator "NA RC COMBH"]
[PlyCount "79"]
[EventDate "2022.06.05"]
[EventType "swiss"]
[EventRounds "9"]
[EventCountry "GER"]
[SourceTitle "playchess.com"]
[Source "ChessBase"]
[SourceQuality "1"]
[TimeControl "40/4500+30:900+30"]

1. d4 {[%emt 0:00:00]} Nf6 {[%emt 0:00:00]} 2. c4 {[%emt 0:00:00]} g6 {[%emt 0:00:00]} 3. Nc3 {[%emt 0:00:00]} Bg7 {[%emt 0:00:00]} 4. e4 {[%emt 0:00:00]} d6 {[%emt 0:00:00]} 5. Be2 {[%emt 0:00:00]} O-O {[%emt 0:00:00]} 6. Be3 {[%emt 0:00:00]} e5 {[%emt 0:00:00]} 7. d5 {[%emt 0:00:00]} a5 {[%emt 0:00:00]} 8. g4 {[%emt 0:00:00]} Na6 {[%emt 0:00:00]} 9. g5 {[%emt 0:00:00] is more profitable than 9.h4 at the moment.} Ne8 {[%emt 0:00:00]} 10. h4 {[%emt 0:00:00]} f5 {[%emt 0:05:14]} 11. gxf6 {[%emt 0:00:00]} Bxf6 {[%emt 0:01:24]} 12. h5 {[%emt 0:00:00] [#]} g5 $146 {[%emt 0:03:41]} ({Predecessor:} 12... Bg5 13. Qd2 Bxe3 14. Qxe3 Qf6 15. hxg6 hxg6 16. Nf3 Qf4 17. Qxf4 Rxf4 18. Kd2 Nf6 {1-0 (64) Lopez Martinez,J (2552)-Pradeep,K (2330) Sitges 2016}) 13. h6 {[%emt 0:00:00]} Kh8 {[%emt 0:01:43]} 14. Bg4 {[%emt 0:00:00]} Rg8 {[%emt 0:01:34]} 15. f3 {[%emt 0:02:48]} Be7 {[%emt 0:03:41]} (15... Bxg4 $142 16. fxg4 Qd7) 16. Nge2 {[%emt 0:01:43]} Nf6 {[%emt 0:01:46] [#]} 17. Ng3 $1 {[%emt 0:00:20]} Nc5 {[%emt 0:03:25]} (17... Bd7 $16) 18. Bxc5 {[%emt 0:03:38]} dxc5 {[%emt 0:00:18]} 19. Qe2 {[%emt 0:01:09]} Ne8 {[%emt 0:01:53]} 20. Nd1 {[%emt 0:05:53]} b6 {[%emt 0:06:46]} 21. a4 {[%emt 0:01:24]} Rf8 {[%emt 0:04:59]} 22. Ne3 {[%emt 0:03:24]} Bxg4 {[%emt 0:04:56]} 23. fxg4 {[%emt 0:02:41]} Rf4 {[%emt 0:01:52]} 24. Nef5 {[%emt 0:01:09]} Nf6 {[%emt 0:01:04]} 25. Rf1 {[%emt 0:03:35]} Bf8 {[%emt 0:08:30]} 26. O-O-O {[%emt 0:14:31]} Qe8 $1 {[%emt 0:01:35]} 27. Rxf4 {[%emt 0:00:52]} ({White should play} 27. Ng7 $14 Bxg7 28. hxg7+ Kxg7 29. d6 (29. Nf5+ Kh8 $11) 29... cxd6 30. Rxd6) 27... exf4 {[%emt 0:01:58]} 28. e5 $2 {[%emt 0:03:25]} (28. Nh1 $11 {and White has nothing to worry.}) 28... fxg3 {[%emt 0:03:41]} 29. Re1 {[%emt 0:00:42] [#]} (29. e6 $17) 29... g2 $1 {[%emt 0:01:57]} 30. Qxg2 {[%emt 0:00:31]} Qxa4 {[%emt 0:00:43]} 31. Kb1 {[%emt 0:02:35]} Qb4 $2 {[%emt 0:03:05]} (31... Re8 $11 {and Black has nothing to worry.} 32. Qg3 {[#]} Qxc4 $1 33. exf6 Re2 34. Rxe2 Qxe2) 32. Re3 {[%emt 0:09:20]} Re8 {[%emt 0:01:57] [#]} 33. Qe2 $1 {[%emt 0:00:48]} ({Inferior is} 33. exf6 Rxe3 34. Nxe3 Qe1+ 35. Ka2 Qxe3 $11) 33... Ng8 {[%emt 0:00:36]} 34. d6 {[%emt 0:05:39]} Qa4 {[%emt 0:03:17]} 35. e6 {[%emt 0:04:31]} Bxd6 {[%emt 0:04:10]} 36. Nxd6 {[%emt 0:00:37]} cxd6 $11 {[%emt 0:00:10]} 37. b3 {[%emt 0:00:02]} Qc6 {[%emt 0:00:22]} 38. Qb2+ {[%emt 0:00:07]} Nf6 {[%emt 0:00:52]} 39. Qxf6+ {[%emt 0:00:02]} Kg8 {[%emt 0:00:06]} 40. Qg7# {[%emt 0:00:41]} 1-0

[Event "GER-ch Youth-U12 2022"]
[Site "Willingen"]
[Date "2022.06.08"]
[Round "5.3"]
[White "Herrmann, Arthur"]
[Black "Dordevic, Tom"]
[Result "0-1"]
[ECO "B41"]
[WhiteElo "1507"]
[BlackElo "1771"]
[Annotator "NA RC COMBH"]
[PlyCount "84"]
[EventDate "2022.06.05"]
[EventType "swiss"]
[EventRounds "9"]
[EventCountry "GER"]
[SourceTitle "playchess.com"]
[Source "ChessBase"]
[SourceQuality "1"]
[TimeControl "40/4500+30:900+30"]

1. e4 {[%emt 0:00:00]} c5 {[%emt 0:00:00]} 2. Nf3 {[%emt 0:00:00]} e6 {[%emt 0:00:00]} 3. d4 {[%emt 0:00:00]} cxd4 {[%emt 0:00:00]} 4. Nxd4 {[%emt 0:00:00]} a6 {[%emt 0:00:00]} 5. c4 {[%emt 0:00:00]} Nf6 {[%emt 0:00:00]} 6. Nc3 {[%emt 0:00:00]} Bb4 {[%emt 0:00:00]} 7. Qd3 {[%emt 0:00:18]} Bxc3+ {[%emt 0:00:00]} 8. bxc3 {[%emt 0:01:54]} d5 {[%emt 0:02:19]} 9. cxd5 {[%emt 0:02:34]} exd5 {[%emt 0:00:00]} 10. e5 {[%emt 0:06:39]} Ne4 {[%emt 0:00:00]} 11. Ba3 {[%emt 0:02:35]} Nc6 {[%emt 0:12:42]} 12. Nxc6 {[%emt 0:11:05]} bxc6 {[%emt 0:00:06]} 13. Be2 {[%emt 0:02:19]} Qa5 {[%emt 0:19:21]} 14. Bb4 {[%emt 0:02:22]} Qb6 {[%emt 0:00:24]} 15. O-O {[%emt 0:02:09]} a5 {[%emt 0:07:43]} 16. Ba3 {[%emt 0:00:57]} Ba6 {[%emt 0:01:29]} 17. Qc2 {[%emt 0:03:06]} Bxe2 {[%emt 0:14:08]} 18. Qxe2 {[%emt 0:00:07]} Ng5 {[%emt 0:00:32]} 19. Rab1 {[%emt 0:02:28]} Qa7 {[%emt 0:01:17]} 20. Qg4 {[%emt 0:07:44]} Ne6 {[%emt 0:01:39]} 21. Kh1 {[%emt 0:02:52]} g6 {[%emt 0:09:23]} 22. f4 {[%emt 0:07:17]} Ng7 {[%emt 0:02:01]} 23. Qg5 {[%emt 0:14:40]} c5 {[%emt 0:02:10]} 24. Rfd1 {[%emt 0:01:01]} O-O {[%emt 0:04:53]} 25. Rxd5 {[%emt 0:01:12]} Rac8 {[%emt 0:00:57]} 26. Rbd1 {[%emt 0:02:06]} Ne6 {[%emt 0:02:08]} 27. Qg4 {[%emt 0:02:21]} Rc7 {[%emt 0:02:01]} 28. Rd6 {[%emt 0:03:59]} Qa8 {[%emt 0:01:12]} 29. R6d5 {[%emt 0:01:49]} Qa7 {[%emt 0:01:10]} 30. h4 {[%emt 0:00:52]} h5 {[%emt 0:01:14]} 31. Qf3 {[%emt 0:00:46]} Ng7 {[%emt 0:00:18]} 32. Qf2 {[%emt 0:00:38]} Rfc8 {[%emt 0:00:28]} 33. Rd8+ {[%emt 0:00:29]} Kh7 {[%emt 0:00:40]} 34. Rxc8 {[%emt 0:00:24]} Rxc8 {[%emt 0:00:03]} 35. Rd5 {[%emt 0:00:30]} Qb7 {[%emt 0:01:51]} 36. Rxc5 {[%emt 0:00:27]} Rd8 {[%emt 0:00:27]} 37. Qe2 {[%emt 0:01:21]} Qb1+ {[%emt 0:00:21]} 38. Kh2 {[%emt 0:00:07]} Rd1 {[%emt 0:00:07]} 39. g3 {[%emt 0:05:00]} Rh1+ {[%emt 0:00:21]} 40. Kg2 {[%emt 0:00:04]} Nf5 {[%emt 0:01:19]} 41. Qb5 {[%emt 0:01:03]} Qe4+ {[%emt 0:00:00]} 42. Kf2 {[%emt 0:00:05]} Qe3+ {[%emt 0:00:00]} 0-1

[Event "GER-ch Youth-U12 2022"]
[Site "Willingen"]
[Date "2022.06.08"]
[Round "5.4"]
[White "Korchynskyi, Mykola"]
[Black "Kulkovets, Roman"]
[Result "1-0"]
[ECO "B14"]
[WhiteElo "1723"]
[BlackElo "1099"]
[Annotator "NA RC COMBH"]
[PlyCount "120"]
[EventDate "2022.06.05"]
[EventType "swiss"]
[EventRounds "9"]
[EventCountry "GER"]
[SourceTitle "playchess.com"]
[Source "ChessBase"]
[SourceQuality "1"]
[TimeControl "40/4500+30:900+30"]

1. d4 {[%emt 0:00:48]} Nf6 {[%emt 0:00:00]} 2. c4 {[%emt 0:00:00]} c5 {[%emt 0:00:00]} 3. e3 {[%emt 0:00:00]} cxd4 {[%emt 0:00:00]} 4. exd4 {[%emt 0:00:00]} d5 {[%emt 0:00:00]} 5. Nc3 {[%emt 0:00:00]} e6 {[%emt 0:00:00]} 6. Bg5 {[%emt 0:00:00]} Be7 {[%emt 0:00:00]} 7. Nf3 {[%emt 0:00:00]} O-O {[%emt 0:00:00]} 8. Bd3 {[%emt 0:00:00]} a6 {[%emt 0:00:00]} 9. Bxf6 {[%emt 0:00:00]} Bxf6 {[%emt 0:00:00]} 10. cxd5 {[%emt 0:00:00]} exd5 {[%emt 0:00:00]} 11. Qb3 {[%emt 0:05:20]} Re8+ {[%emt 0:00:00]} 12. Be2 {[%emt 0:00:42]} Nc6 {[%emt 0:00:00]} 13. Rd1 {[%emt 0:04:10]} Bg4 {[%emt 0:00:00]} 14. O-O {[%emt 0:06:30]} Bxf3 {[%emt 0:00:16]} 15. Bxf3 {[%emt 0:00:25]} Nxd4 {[%emt 0:00:12]} 16. Qxd5 {[%emt 0:00:38]} Qxd5 {[%emt 0:00:08]} 17. Bxd5 {[%emt 0:00:50]} Rab8 {[%emt 0:00:08]} 18. Rd2 {[%emt 0:01:43]} Red8 {[%emt 0:00:48]} 19. Rfd1 {[%emt 0:00:53]} Nc6 {[%emt 0:03:16]} 20. Ne4 {[%emt 0:03:08]} Be5 {[%emt 0:00:13]} 21. Nc5 {[%emt 0:03:28]} Bf6 {[%emt 0:00:43]} 22. Bxc6 {[%emt 0:11:37]} Rxd2 {[%emt 0:01:12]} 23. Rxd2 {[%emt 0:00:02]} bxc6 {[%emt 0:00:04]} 24. Nxa6 {[%emt 0:00:38]} Ra8 {[%emt 0:02:24]} 25. Nb4 {[%emt 0:00:17]} c5 {[%emt 0:00:03]} 26. Nd5 {[%emt 0:00:10]} Rxa2 {[%emt 0:00:05]} 27. Nxf6+ {[%emt 0:00:01]} gxf6 {[%emt 0:00:09]} 28. Kf1 {[%emt 0:01:25]} Kf8 {[%emt 0:00:09]} 29. Ke2 {[%emt 0:00:21]} Ke7 {[%emt 0:00:04]} 30. g3 {[%emt 0:01:03]} Ke6 {[%emt 0:00:51]} 31. Rc2 {[%emt 0:01:34]} Kd5 {[%emt 0:00:45]} 32. Ke3 {[%emt 0:02:06]} Ra4 {[%emt 0:12:38]} 33. Rd2+ {[%emt 0:10:22]} Ke6 {[%emt 0:00:00]} 34. f4 {[%emt 0:01:56]} f5 {[%emt 0:00:00]} 35. Kf3 {[%emt 0:00:41]} Rb4 {[%emt 0:00:00]} 36. Kg2 {[%emt 0:01:10]} f6 {[%emt 0:00:00]} 37. Kh3 {[%emt 0:03:16]} Rd4 {[%emt 0:00:00]} 38. Rxd4 {[%emt 0:01:36]} cxd4 {[%emt 0:00:00]} 39. Kg2 {[%emt 0:00:00]} Kd5 {[%emt 0:00:00]} 40. Kf3 {[%emt 0:00:16]} Kc4 {[%emt 0:00:00]} 41. Ke2 {[%emt 0:15:10]} d3+ {[%emt 0:15:13]} 42. Ke3 {[%emt 0:00:22]} h6 {[%emt 0:00:41]} 43. h3 {[%emt 0:00:07]} h5 {[%emt 0:00:03]} 44. h4 {[%emt 0:00:04]} d2 {[%emt 0:05:37]} 45. Kxd2 {[%emt 0:01:09]} Kd4 {[%emt 0:00:05]} 46. b4 {[%emt 0:02:03]} Ke4 {[%emt 0:00:41]} 47. Kc3 {[%emt 0:00:20]} Kf3 {[%emt 0:00:07]} 48. b5 {[%emt 0:00:00]} Kxg3 {[%emt 0:00:06]} 49. b6 {[%emt 0:00:05]} Kxf4 {[%emt 0:00:04]} 50. b7 {[%emt 0:00:04]} Kg4 {[%emt 0:00:37]} 51. b8=Q {[%emt 0:00:05]} f4 {[%emt 0:00:05]} 52. Qg8+ {[%emt 0:00:12]} Kxh4 {[%emt 0:00:23]} 53. Qg2 {[%emt 0:00:11]} f5 {[%emt 0:00:10]} 54. Kd4 {[%emt 0:00:05]} f3 {[%emt 0:00:02]} 55. Qxf3 {[%emt 0:00:05]} f4 {[%emt 0:00:05]} 56. Ke5 {[%emt 0:00:17]} Kg5 {[%emt 0:00:10]} 57. Qxf4+ {[%emt 0:00:07]} Kg6 {[%emt 0:00:03]} 58. Qf6+ {[%emt 0:00:08]} Kh7 {[%emt 0:00:07]} 59. Qg5 {[%emt 0:00:07]} h4 {[%emt 0:00:08]} 60. Kf6 {[%emt 0:00:03]} Kh8 {[%emt 0:00:07]} 1-0

[Event "GER-ch Youth-U12 2022"]
[Site "Willingen"]
[Date "2022.06.08"]
[Round "5.5"]
[White "Freude, Paul"]
[Black "Wartenberg, Alexander"]
[Result "1-0"]
[ECO "C22"]
[WhiteElo "1415"]
[BlackElo "1682"]
[Annotator "NA RC COMBH"]
[PlyCount "55"]
[EventDate "2022.06.05"]
[EventType "swiss"]
[EventRounds "9"]
[EventCountry "GER"]
[SourceTitle "playchess.com"]
[Source "ChessBase"]
[SourceQuality "1"]
[TimeControl "40/4500+30:900+30"]

1. e4 {[%emt 0:00:00]} e5 {[%emt 0:00:00]} 2. d4 {[%emt 0:00:00]} exd4 {[%emt 0:00:00]} 3. Qxd4 {[%emt 0:00:00]} Nc6 {[%emt 0:00:00]} 4. Qe3 {[%emt 0:00:00]} Nf6 {[%emt 0:00:00]} 5. Nc3 {[%emt 0:00:00]} Bb4 {[%emt 0:00:00]} 6. Bd2 {[%emt 0:00:00]} Bxc3 {[%emt 0:00:00]} 7. Bxc3 {[%emt 0:00:00]} O-O {[%emt 0:00:00]} 8. O-O-O {[%emt 0:00:00]} Re8 {[%emt 0:00:00]} 9. Qf4 {[%emt 0:00:00]} Nxe4 {[%emt 0:00:00]} 10. Bc4 {[%emt 0:00:00]} Ng5 {[%emt 0:00:00]} 11. Nh3 {[%emt 0:00:00]} Ne6 {[%emt 0:00:00]} 12. Qg3 {[%emt 0:00:00]} f6 {[%emt 0:01:04]} 13. Rhe1 {[%emt 0:00:00]} Qe7 {[%emt 0:09:04]} 14. Nf4 {[%emt 0:00:00]} Qf7 {[%emt 0:09:44]} 15. Nd5 {[%emt 0:00:00]} Ne5 {[%emt 0:07:12]} 16. Bxe5 {[%emt 0:00:00]} fxe5 {[%emt 0:01:01]} 17. Nxc7 {[%emt 0:00:00]} d5 {[%emt 0:01:38]} 18. Nxe8 {[%emt 0:00:17]} dxc4 {[%emt 0:00:28]} 19. Nd6 {[%emt 0:00:24]} Qf4+ {[%emt 0:01:14]} 20. Qxf4 {[%emt 0:00:45]} Nxf4 {[%emt 0:00:17]} 21. Rxe5 {[%emt 0:01:30]} Bg4 {[%emt 0:00:34]} 22. Rde1 {[%emt 0:00:17]} h6 {[%emt 0:00:53]} 23. Re8+ {[%emt 0:01:19]} Rxe8 {[%emt 0:00:07]} 24. Rxe8+ {[%emt 0:00:03]} Kh7 {[%emt 0:00:06]} 25. Re4 {[%emt 0:00:38]} Ne2+ {[%emt 0:00:19]} 26. Kd2 {[%emt 0:00:09]} Bh5 {[%emt 0:00:26]} 27. Rxe2 {[%emt 0:00:09]} Bxe2 {[%emt 0:00:06]} 28. Kxe2 {[%emt 0:00:03]} 1-0